fUST/lending_fUST_20250626
["ID","MTS","AMOUNT","RATE_DAILY","PERIOD"]
[367829014,1750938647786,-460.0,0.0001726,2]
[367829015,1750938647796,-460.0,0.0001726,2]
[367829016,1750938647805,-460.0,0.0001726,2]
[367829017,1750938647814,-460.0,0.0001726,2]
[367829018,1750938647824,-460.0,0.0001726,2]
[367829019,1750938647833,-460.0,0.0001726,2]
[367829020,1750938647843,-665.16,0.0001726,2]
[367829021,1750938647852,-460.0,0.0001726,2]
[367829022,1750938647862,-529.10252154,0.0001726,2]
[367829023,1750938647872,-1435.58,0.0001726,2]
[367829024,1750938647881,-460.0,0.0001726,2]
[367829025,1750938647891,-587.13,0.0001726,2]
[367829026,1750938647900,-460.0,0.0001726,2]
[367829027,1750938647909,-1773.28,0.0001726,2]
[367829028,1750938647919,-460.0,0.0001726,2]
[367829029,1750938647928,-487.17,0.0001726,2]
[367829030,1750938647937,-1528.42,0.0001726,2]
[367829031,1750938647947,-460.0,0.0001726,2]
[367829032,1750938647958,-460.0,0.0001726,2]
[367829033,1750938647969,-460.0,0.0001726,2]
[367829034,1750938647978,-460.0,0.0001726,2]
[367829035,1750938647987,-1097.49,0.0001726,2]
[367829036,1750938647997,-460.0,0.0001726,2]
[367829037,1750938648009,-460.0,0.0001726,2]
[367829038,1750938648019,-213.64135167,0.0001726,2]
[367829039,1750938648028,-460.0,0.0001726,2]
[367829040,1750938648039,-460.0,0.0001726,2]
[367829041,1750938648051,-460.0,0.0001726,2]
[367829042,1750938648060,-460.0,0.0001726,2]
[367829043,1750938648070,-460.0,0.0001726,2]
[367829044,1750938648079,-494.19,0.0001726,2]
[367829045,1750938648088,-723.58,0.0001726,2]
[367829046,1750938648097,-460.0,0.0001726,2]
[367829047,1750938648107,-3359.93,0.0001726,2]
[367829048,1750938648117,-460.0,0.0001726,2]
[367829049,1750938648126,-460.0,0.0001726,2]
[367829050,1750938648136,-1825.85,0.0001726,2]
[367829051,1750938648146,-848.99,0.0001726,2]
[367829052,1750938648155,-460.0,0.0001726,2]
[367829053,1750938648165,-460.0,0.0001726,2]
[367829054,1750938648174,-734.02,0.0001726,2]
[367829055,1750938648184,-3697.64,0.0001726,2]
[367829056,1750938648194,-2136.24,0.0001726,2]
[367829057,1750938648204,-460.0,0.0001726,2]
[367829058,1750938648213,-460.0,0.0001726,2]
[367829059,1750938648222,-356.0,0.00017281,2]
[367829060,1750938648231,-982.0,0.00017287,2]
[367829061,1750938648241,-792.0,0.00017287,2]
[367829062,1750938648250,-982.0,0.00017315,2]
[367829063,1750938648260,-792.0,0.00017315,2]
[367829064,1750938648269,-986.10000001,0.00017342,2]
[367829065,1750938648278,-810.02021361,0.00017342,2]
[367829066,1750938648287,-500.0,0.00017366,2]
[367829067,1750938648297,-500.0,0.00017366,2]
[367829068,1750938648307,-500.0,0.00017366,2]
[367829069,1750938648316,-504.89735478,0.00017366,2]
[367829070,1750938648326,-500.0,0.00017366,2]
[367829071,1750938648336,-500.0,0.00017366,2]
[367829072,1750938648345,-501.20939308,0.00017366,2]
[367829073,1750938648355,-500.92098128,0.00017366,2]
[367829074,1750938648365,-500.0,0.00017366,2]
[367829075,1750938648374,-460.0,0.00017534,2]
[367829076,1750938648384,-460.0,0.00017534,2]
[367829077,1750938648394,-460.0,0.00017534,2]
[367829078,1750938648404,-460.0,0.00017534,2]
[367829079,1750938648413,-489.08070843,0.00017534,2]
[367829080,1750938648423,-542.68851706,0.00017534,2]
[367829081,1750938648432,-460.0,0.00017534,2]
[367829082,1750938648442,-460.0,0.00017534,2]
[367829083,1750938648451,-318.40261855,0.00017534,2]
[367829084,1750938648460,-460.0,0.00017534,2]
[367829085,1750938648470,-529.89,0.00017534,2]
[367829086,1750938648479,-463.39591802,0.00017534,2]
[367829087,1750938648488,-460.0,0.00017534,2]
[367829088,1750938648498,-460.0,0.00017534,2]
[367829089,1750938648507,-680.23,0.00017534,2]
[367829090,1750938648516,-460.0,0.00017534,2]
[367829091,1750938648526,-460.0,0.00017534,2]
[367829092,1750938648535,-289.98155882,0.00017534,2]
[367829093,1750938648545,-563.75,0.00017534,2]
[367829094,1750938648554,-460.0,0.00017534,2]
[367829095,1750938648564,-460.0,0.00017534,2]
[367829096,1750938648573,-460.0,0.00017534,2]
[367829097,1750938648583,-460.0,0.00017534,2]
[367829098,1750938648592,-460.0,0.00017534,2]
[367829099,1750938648601,-460.0,0.00017534,2]
[367829100,1750938648612,-479.16,0.00017534,2]
[367829101,1750938648621,-460.0,0.00017534,2]
[367829102,1750938648631,-460.0,0.00017534,2]
[367829103,1750938648641,-460.0,0.00017534,2]
[367829104,1750938648650,-460.0,0.00017534,2]
[367829105,1750938648659,-460.0,0.00017534,2]
[367829106,1750938648669,-361.66330694,0.00017534,2]
[367829107,1750938648678,-217.29,0.00017534,2]
[367829108,1750938648687,-343.92013248,0.00017534,2]
[367829109,1750938648697,-460.0,0.00017534,2]
[367829110,1750938648707,-460.0,0.00017534,2]
[367829111,1750938648716,-591.49,0.00017534,2]
[367829112,1750938648725,-460.0,0.00017534,2]
[367829113,1750938648735,-460.0,0.00017534,2]
[367829114,1750938648747,-460.0,0.00017534,2]
[367829115,1750938648756,-460.0,0.00017534,2]
[367829116,1750938648767,-352.46822449,0.00017534,2]
[367829117,1750938648776,-460.0,0.00017534,2]
[367829118,1750938648786,-460.0,0.00017534,2]
[367829119,1750938648796,-220.65,0.00017534,2]
[367829120,1750938648805,-980.18,0.00017534,2]
[367829121,1750938648815,-460.0,0.00017534,2]
[367829122,1750938648824,-460.0,0.00017534,2]
[367829123,1750938648834,-460.0,0.00017534,2]
[367829124,1750938648844,-460.0,0.00017534,2]
[367829125,1750938648854,-460.0,0.00017534,2]
[367829126,1750938648866,-460.0,0.00017534,2]
[367829127,1750938648875,-551.12064414,0.00017534,2]
[367829128,1750938648884,-460.0,0.00017534,2]
[367829129,1750938648894,-460.0,0.00017534,2]
[367829130,1750938648903,-307.6699977,0.00017534,2]
[367829131,1750938648912,-460.0,0.00017534,2]
[367829132,1750938648922,-460.0,0.00017534,2]
[367829133,1750938648931,-460.0,0.00017534,2]
[367829134,1750938648941,-460.0,0.00017534,2]
[367829135,1750938648951,-460.0,0.00017534,2]
[367829136,1750938648964,-554.56,0.00017534,2]
[367829137,1750938648974,-460.0,0.00017534,2]
[367829138,1750938648983,-460.0,0.00017534,2]
[367829139,1750938648994,-460.0,0.00017534,2]
[367829140,1750938649004,-460.0,0.00017534,2]
[367829141,1750938649014,-472.45,0.00017534,2]
[367829142,1750938649169,-460.0,0.00017534,2]
[367829143,1750938649179,-593.91,0.00017534,2]
[367829144,1750938649189,-425.27532685,0.00017534,2]
[367829145,1750938649199,-460.0,0.00017534,2]
[367829146,1750938649208,-1405.31,0.00017534,2]
[367829147,1750938649218,-630.39,0.00017534,2]
[367829148,1750938649228,-469.13,0.00017534,2]
[367829149,1750938649237,-460.0,0.00017534,2]
[367829150,1750938649246,-583.07,0.00017534,2]
[367829151,1750938649255,-889.83,0.00017534,2]
[367829152,1750938649264,-460.0,0.00017534,2]
[367829153,1750938649274,-519.55,0.00017534,2]
[367829154,1750938649283,-460.0,0.00017534,2]
[367829155,1750938649293,-460.0,0.00017534,2]
[367829156,1750938649302,-460.0,0.00017534,2]
[367829157,1750938649313,-460.0,0.00017534,2]
[367829158,1750938649322,-460.0,0.00017534,2]
[367829159,1750938649332,-460.0,0.00017534,2]
[367829160,1750938649342,-514.82,0.00017534,2]
[367829161,1750938649352,-2249.96,0.00017534,2]
[367829162,1750938649361,-552.56,0.00017534,2]
[367829163,1750938649371,-1484.65,0.00017534,2]
[367829164,1750938649380,-1390.73,0.00017534,2]
[367829165,1750938649389,-460.0,0.00017534,2]
[367829166,1750938649398,-460.0,0.00017534,2]
[367829167,1750938649408,-460.0,0.00017534,2]
[367829168,1750938649417,-596.44,0.00017534,2]
[367829169,1750938649426,-715.82,0.00017534,2]
[367829170,1750938649436,-460.0,0.00017534,2]
[367829171,1750938649445,-474.91,0.00017534,2]
[367829172,1750938649455,-460.0,0.00017534,2]
[367829173,1750938649464,-780.26,0.00017534,2]
[367829174,1750938649474,-2309.22,0.00017534,2]
[367829175,1750938649483,-835.13,0.00017534,2]
[367829176,1750938649492,-2937.52,0.00017534,2]
[367829177,1750938649502,-460.0,0.00017534,2]
[367829178,1750938649511,-700.62,0.00017534,2]
[367829179,1750938649521,-460.0,0.00017534,2]
[367829180,1750938649531,-499.04,0.00017534,2]
[367829181,1750938649540,-460.0,0.00017534,2]
[367829182,1750938649549,-460.0,0.00017534,2]
[367829183,1750938649558,-460.0,0.00017534,2]
[367829184,1750938649567,-1558.67,0.00017534,2]
[367829185,1750938649577,-1099.56,0.00017534,2]
[367829186,1750938649586,-460.0,0.00017534,2]
[367829187,1750938649595,-460.0,0.00017534,2]
[367829188,1750938649604,-1080.61,0.00017534,2]
[367829189,1750938649614,-1383.15,0.00017534,2]
[367829190,1750938649623,-460.0,0.00017534,2]
[367829191,1750938649632,-460.0,0.00017534,2]
[367829192,1750938649641,-460.0,0.00017534,2]
[367829193,1750938649650,-175.25392168,0.00017534,2]
[367829194,1750938649660,-460.0,0.00017534,2]
[367829195,1750938649669,-460.0,0.00017534,2]
[367829196,1750938649678,-665.16,0.00017534,2]
[367829197,1750938649688,-460.0,0.00017534,2]
[367829198,1750938649697,-1435.58,0.00017534,2]
[367829199,1750938649707,-460.0,0.00017534,2]
[367829200,1750938649716,-587.13,0.00017534,2]
[367829201,1750938649726,-460.0,0.00017534,2]
[367829202,1750938649735,-1773.28,0.00017534,2]
[367829203,1750938649745,-460.0,0.00017534,2]
[367829204,1750938649754,-487.17,0.00017534,2]
[367829205,1750938649763,-1528.42,0.00017534,2]
[367829206,1750938649773,-460.0,0.00017534,2]
[367829207,1750938649782,-460.0,0.00017534,2]
[367829208,1750938649791,-460.0,0.00017534,2]
[367829209,1750938649800,-460.0,0.00017534,2]
[367829210,1750938649811,-1097.49,0.00017534,2]
[367829211,1750938649820,-460.0,0.00017534,2]
[367829212,1750938649829,-460.0,0.00017534,2]
[367829213,1750938649839,-460.0,0.00017534,2]
[367829214,1750938649848,-460.0,0.00017534,2]
[367829215,1750938649859,-460.0,0.00017534,2]
[367829216,1750938649874,-460.0,0.00017534,2]
[367829217,1750938649883,-460.0,0.00017534,2]
[367829218,1750938649894,-494.19,0.00017534,2]
[367829219,1750938649903,-723.58,0.00017534,2]
[367829220,1750938649912,-460.0,0.00017534,2]
[367829221,1750938649921,-3359.93,0.00017534,2]
[367829222,1750938649930,-460.0,0.00017534,2]
[367829223,1750938649941,-460.0,0.00017534,2]
[367829224,1750938649950,-1825.85,0.00017534,2]
[367829225,1750938649962,-848.99,0.00017534,2]
[367829226,1750938649973,-460.0,0.00017534,2]
[367829227,1750938649982,-460.0,0.00017534,2]
[367829228,1750938649992,-3697.64,0.00017534,2]
[367829229,1750938650001,-734.02,0.00017534,2]
[367829230,1750938650011,-2136.24,0.00017534,2]
[367829231,1750938650020,-460.0,0.00017534,2]
[367829232,1750938650030,-460.0,0.00017534,2]
[367829233,1750938650040,-500.0,0.0001755,2]
[367829234,1750938650050,-500.0,0.0001755,2]
[367829235,1750938650059,-500.0,0.00017769,2]
[367829236,1750938650068,-500.0,0.00017777,2]
[367829237,1750938650078,-500.0,0.00017777,2]
[367829238,1750938650086,-440.61238396,0.00017777,2]
[367829239,1750938650096,-500.0,0.00017785,2]
[367829240,1750938650104,-500.0,0.00017785,2]
[367829241,1750938650115,-166.22610356,0.00017785,2]
[367829242,1750938650124,-500.19571875,0.00017785,2]
[367829243,1750938650133,-500.0,0.00017785,2]
[367829244,1750938650143,-500.0,0.00017785,2]
[367829245,1750938650152,-501.20861726,0.00017785,2]
[367829246,1750938650161,-500.41457115,0.00017785,2]
[367829247,1750938650170,-500.08046788,0.00017785,2]
[367829248,1750938650179,-500.30344921,0.00017785,2]
[367829249,1750938650189,-500.0,0.00017785,2]
[367829250,1750938650198,-395.5265441,0.00017785,2]
[367829251,1750938650207,-500.0,0.00017785,2]
[367829252,1750938650216,-425.23766605,0.00017785,2]
[367829253,1750938650225,-179.84230171,0.00017785,2]
[367829254,1750938650234,-500.0,0.00017785,2]
[367829255,1750938650243,-500.22618135,0.00017785,2]
[367829256,1750938650252,-500.0,0.00017785,2]
[367829257,1750938650261,-500.84850324,0.00017785,2]
[367829258,1750938650270,-500.0,0.00017785,2]
[367829259,1750938650279,-676.36308477,0.00017785,2]
[367829260,1750938650288,-565.68,0.00017808,2]
[367829261,1750938650297,-460.0,0.00017808,2]
[367829262,1750938650305,-460.0,0.00017808,2]
[367829263,1750938650315,-460.0,0.00017808,2]
[367829264,1750938650324,-460.0,0.00017808,2]
[367829265,1750938650334,-460.0,0.00017808,2]
[367829266,1750938650343,-529.89,0.00017808,2]
[367829267,1750938650352,-460.0,0.00017808,2]
[367829268,1750938650362,-460.0,0.00017808,2]
[367829269,1750938650371,-680.23,0.00017808,2]
[367829270,1750938650380,-460.0,0.00017808,2]
[367829271,1750938650389,-460.0,0.00017808,2]
[367829272,1750938650399,-563.75,0.00017808,2]
[367829273,1750938650408,-460.0,0.00017808,2]
[367829274,1750938650417,-460.0,0.00017808,2]
[367829275,1750938650426,-460.0,0.00017808,2]
[367829276,1750938650435,-460.0,0.00017808,2]
[367829277,1750938650444,-563.72,0.00017808,2]
[367829278,1750938650453,-460.0,0.00017808,2]
[367829279,1750938650463,-479.16,0.00017808,2]
[367829280,1750938650472,-460.0,0.00017808,2]
[367829281,1750938650481,-460.0,0.00017808,2]
[367829282,1750938650491,-460.0,0.00017808,2]
[367829283,1750938650500,-460.0,0.00017808,2]
[367829284,1750938650509,-460.0,0.00017808,2]
[367829285,1750938650518,-460.0,0.00017808,2]
[367829286,1750938650528,-460.0,0.00017808,2]
[367829287,1750938650537,-591.49,0.00017808,2]
[367829288,1750938650547,-460.0,0.00017808,2]
[367829289,1750938650556,-460.0,0.00017808,2]
[367829290,1750938650566,-460.0,0.00017808,2]
[367829291,1750938650575,-460.0,0.00017808,2]
[367829292,1750938650585,-460.0,0.00017808,2]
[367829293,1750938650594,-460.0,0.00017808,2]
[367829294,1750938650603,-980.18,0.00017808,2]
[367829295,1750938650612,-460.0,0.00017808,2]
[367829296,1750938650621,-460.0,0.00017808,2]
[367829297,1750938650630,-460.0,0.00017808,2]
[367829298,1750938650639,-460.0,0.00017808,2]
[367829299,1750938650649,-460.0,0.00017808,2]
[367829300,1750938650658,-394.3795204,0.00017808,2]
[367829301,1750938650667,-460.0,0.00017808,2]
[367829302,1750938650676,-460.0,0.00017808,2]
[367829303,1750938650686,-460.0,0.00017808,2]
[367829304,1750938650695,-460.0,0.00017808,2]
[367829305,1750938650705,-460.0,0.00017808,2]
[367829306,1750938650714,-460.0,0.00017808,2]
[367829307,1750938650723,-554.56,0.00017808,2]
[367829308,1750938650733,-460.0,0.00017808,2]
[367829309,1750938650744,-460.0,0.00017808,2]
[367829310,1750938650758,-460.0,0.00017808,2]
[367829311,1750938650772,-460.0,0.00017808,2]
[367829312,1750938650786,-562.99,0.00017808,2]
[367829313,1750938650799,-593.91,0.00017808,2]
[367829314,1750938650810,-460.0,0.00017808,2]
[367829315,1750938650822,-1405.31,0.00017808,2]
[367829316,1750938650835,-630.39,0.00017808,2]
[367829317,1750938650848,-469.13,0.00017808,2]
[367829318,1750938650862,-583.07,0.00017808,2]
[367829319,1750938650875,-460.0,0.00017808,2]
[367829320,1750938650887,-889.83,0.00017808,2]
[367829321,1750938650899,-460.0,0.00017808,2]
[367829322,1750938650914,-519.55,0.00017808,2]
[367829323,1750938650927,-460.0,0.00017808,2]
[367829324,1750938650939,-460.0,0.00017808,2]
[367829325,1750938650952,-460.0,0.00017808,2]
[367829326,1750938650966,-211.71745892,0.00017808,2]
[367829327,1750938650977,-460.0,0.00017808,2]
[367829328,1750938650989,-514.82,0.00017808,2]
[367829329,1750938651003,-460.0,0.00017808,2]
[367829330,1750938651016,-2249.96,0.00017808,2]
[367829331,1750938651027,-552.56,0.00017808,2]
[367829332,1750938651040,-1484.65,0.00017808,2]
[367829333,1750938651050,-1390.73,0.00017808,2]
[367829334,1750938651063,-460.0,0.00017808,2]
[367829335,1750938651073,-460.0,0.00017808,2]
[367829336,1750938651086,-460.0,0.00017808,2]
[367829337,1750938651098,-596.44,0.00017808,2]
[367829338,1750938651110,-715.82,0.00017808,2]
[367829339,1750938651125,-460.0,0.00017808,2]
[367829340,1750938651137,-474.91,0.00017808,2]
[367829341,1750938651150,-460.0,0.00017808,2]
[367829342,1750938651162,-780.26,0.00017808,2]
[367829343,1750938651176,-2309.22,0.00017808,2]
[367829344,1750938651187,-835.13,0.00017808,2]
[367829345,1750938651197,-2937.52,0.00017808,2]
[367829346,1750938651208,-460.0,0.00017808,2]
[367829347,1750938651219,-700.62,0.00017808,2]
[367829348,1750938651231,-460.0,0.00017808,2]
[367829349,1750938651245,-499.04,0.00017808,2]
[367829350,1750938651257,-460.0,0.00017808,2]
[367829351,1750938651268,-460.0,0.00017808,2]
[367829352,1750938651277,-460.0,0.00017808,2]
[367829353,1750938651288,-1558.67,0.00017808,2]
[367829354,1750938651299,-1099.56,0.00017808,2]
[367829355,1750938651311,-460.0,0.00017808,2]
[367829356,1750938651323,-460.0,0.00017808,2]
[367829357,1750938651333,-1080.61,0.00017808,2]
[367829358,1750938651343,-1383.15,0.00017808,2]
[367829359,1750938651353,-460.0,0.00017808,2]
[367829360,1750938651365,-460.0,0.00017808,2]
[367829361,1750938651376,-460.0,0.00017808,2]
[367829362,1750938651388,-460.0,0.00017808,2]
[367829363,1750938651399,-460.0,0.00017808,2]
[367829364,1750938651410,-665.16,0.00017808,2]
[367829365,1750938651421,-460.0,0.00017808,2]
[367829366,1750938651432,-1435.58,0.00017808,2]
[367829367,1750938651443,-460.0,0.00017808,2]
[367829368,1750938651455,-587.13,0.00017808,2]
[367829369,1750938651466,-460.0,0.00017808,2]
[367829370,1750938651477,-1773.28,0.00017808,2]
[367829371,1750938651488,-460.0,0.00017808,2]
[367829372,1750938651499,-487.17,0.00017808,2]
[367829373,1750938651510,-1528.42,0.00017808,2]
[367829374,1750938651521,-460.0,0.00017808,2]
[367829375,1750938651532,-460.0,0.00017808,2]
[367829376,1750938651542,-460.0,0.00017808,2]
[367829377,1750938651554,-1097.49,0.00017808,2]
[367829378,1750938651566,-460.0,0.00017808,2]
[367829379,1750938651577,-460.0,0.00017808,2]
[367829380,1750938651589,-460.0,0.00017808,2]
[367829381,1750938651600,-460.0,0.00017808,2]
[367829382,1750938651610,-460.0,0.00017808,2]
[367829383,1750938651621,-460.0,0.00017808,2]
[367829384,1750938651632,-460.0,0.00017808,2]
[367829385,1750938651645,-494.19,0.00017808,2]
[367829386,1750938651656,-723.58,0.00017808,2]
[367829387,1750938651667,-460.0,0.00017808,2]
[367829388,1750938651679,-3359.93,0.00017808,2]
[367829389,1750938651691,-460.0,0.00017808,2]
[367829390,1750938651702,-460.0,0.00017808,2]
[367829391,1750938651714,-1825.85,0.00017808,2]
[367829392,1750938651725,-848.99,0.00017808,2]
[367829393,1750938651736,-460.0,0.00017808,2]
[367829394,1750938651747,-460.0,0.00017808,2]
[367829395,1750938651758,-3697.64,0.00017808,2]
[367829396,1750938651769,-2136.24,0.00017808,2]
[367829397,1750938651780,-734.02,0.00017808,2]
[367829398,1750938651791,-460.0,0.00017808,2]
[367829399,1750938651801,-460.0,0.00017808,2]
[367829400,1750938651813,-500.0,0.00017815,2]
[367829401,1750938651824,-500.0,0.00017815,2]
[367829402,1750938651835,-500.0,0.00017841,2]
[367829403,1750938651846,-518.58148547,0.00017844,2]
[367829404,1750938651857,-583.91756294,0.00017844,2]
[367829405,1750938651868,-500.0,0.00017844,2]
[367829406,1750938651879,-500.0,0.00017844,2]
[367829407,1750938651890,-500.0,0.00017844,2]
[367829408,1750938651903,-500.0,0.00017853,2]
[367829409,1750938651914,-500.0,0.00017872,2]
[367829410,1750938651925,-500.0,0.00017872,2]
[367829411,1750938651936,-500.0,0.00017872,2]
[367829412,1750938651947,-500.41164183,0.00017872,2]
[367829413,1750938651960,-2508.82681904,0.000179,2]
[367829414,1750938651972,-8768.19105678,0.00017913,2]
[367829415,1750938651983,-504.18410988,0.00017914,2]
[367829416,1750938651995,-1000.0,0.00017914,2]
[367829417,1750938652007,-501.13814084,0.00017914,2]
[367829418,1750938652018,-500.0,0.00017914,2]
[367829419,1750938652030,-503.61778586,0.00017914,2]
[367829420,1750938652042,-1000.0,0.00017914,2]
[367829421,1750938652054,-420.0,0.00017962,2]
[367829422,1750938652065,-500.0,0.00017963,2]
[367829423,1750938652075,-500.0,0.00017963,2]
[367829424,1750938652088,-500.0,0.00017963,2]
[367829425,1750938652099,-500.0,0.00017963,2]
[367829426,1750938652110,-500.68364037,0.00018057,2]
[367829427,1750938652122,-500.0,0.00018079,2]
[367829428,1750938652132,-500.0,0.00018079,2]
[367829429,1750938652143,-500.0,0.00018079,2]
[367829430,1750938652154,-500.0,0.00018079,2]
[367829431,1750938652165,-500.0,0.00018079,2]
[367829432,1750938652176,-500.0,0.00018079,2]
[367829433,1750938652187,-500.0,0.00018079,2]
[367829434,1750938652197,-500.0,0.00018079,2]
[367829435,1750938652208,-500.0,0.00018079,2]
[367829436,1750938652219,-500.0,0.00018079,2]
[367829437,1750938652230,-500.0,0.00018079,2]
[367829438,1750938652240,-500.0,0.00018079,2]
[367829439,1750938652251,-486.45,0.00018079,2]
[367829440,1750938652262,-500.0,0.00018079,2]
[367829441,1750938652272,-500.0,0.00018079,2]
[367829442,1750938652283,-500.0,0.00018079,2]
[367829443,1750938652294,-452.8969523,0.00018079,2]
[367829444,1750938652305,-500.0,0.00018079,2]
[367829445,1750938652315,-500.0,0.00018079,2]
[367829446,1750938652326,-500.0,0.00018079,2]
[367829447,1750938652336,-500.0,0.00018079,2]
[367829448,1750938652347,-500.0,0.00018079,2]
[367829449,1750938652357,-500.0,0.00018079,2]
[367829450,1750938652368,-500.0,0.00018079,2]
[367829451,1750938652379,-500.0,0.00018079,2]
[367829452,1750938652390,-420.46390594,0.00018079,2]
[367829453,1750938652401,-500.0,0.00018079,2]
[367829454,1750938652414,-500.0,0.00018079,2]
[367829455,1750938652425,-500.0,0.00018079,2]
[367829456,1750938652437,-500.0,0.00018079,2]
[367829457,1750938652450,-500.0,0.00018079,2]
[367829458,1750938652462,-500.0,0.00018079,2]
[367829459,1750938652474,-500.0,0.00018079,2]
[367829460,1750938652485,-500.0,0.00018079,2]
[367829461,1750938652496,-500.0,0.00018079,2]
[367829462,1750938652507,-500.0,0.00018079,2]
[367829463,1750938652518,-500.0,0.00018079,2]
[367829464,1750938652529,-500.0,0.00018079,2]
[367829465,1750938652540,-500.0,0.00018079,2]
[367829466,1750938652551,-500.0,0.00018079,2]
[367829467,1750938652562,-500.0,0.00018079,2]
[367829468,1750938652573,-500.0,0.00018079,2]
[367829469,1750938652584,-500.0,0.00018079,2]
[367829470,1750938652595,-500.0,0.00018079,2]
[367829471,1750938652606,-500.0,0.00018079,2]
[367829472,1750938652817,-200.0,0.00018079,2]
[367829473,1750938652838,-500.0,0.00018079,2]
[367829474,1750938652849,-449.23408471,0.00018079,2]
[367829475,1750938652858,-500.0,0.00018079,2]
[367829476,1750938652869,-500.0,0.00018079,2]
[367829477,1750938652880,-500.0,0.00018079,2]
[367829478,1750938652890,-500.0,0.00018079,2]
[367829479,1750938652900,-500.0,0.00018079,2]
[367829480,1750938652909,-500.0,0.00018079,2]
[367829481,1750938652919,-500.0,0.00018079,2]
[367829482,1750938652928,-500.0,0.00018079,2]
[367829483,1750938652937,-500.0,0.00018079,2]
[367829484,1750938652947,-500.0,0.00018079,2]
[367829485,1750938652957,-500.0,0.00018079,2]
[367829486,1750938652969,-500.0,0.00018079,2]
[367829487,1750938652978,-500.0,0.00018079,2]
[367829488,1750938652988,-500.0,0.00018079,2]
[367829489,1750938652998,-186.25728332,0.00018079,2]
[367829490,1750938653009,-500.0,0.00018079,2]
[367829491,1750938653020,-500.0,0.00018079,2]
[367829492,1750938653029,-500.0,0.00018079,2]
[367829493,1750938653039,-500.0,0.00018079,2]
[367829494,1750938653049,-500.0,0.00018079,2]
[367829495,1750938653058,-500.0,0.00018079,2]
[367829496,1750938653067,-500.0,0.00018079,2]
[367829497,1750938653077,-500.0,0.00018079,2]
[367829498,1750938653086,-500.0,0.00018079,2]
[367829499,1750938653095,-500.0,0.00018079,2]
[367829500,1750938653104,-500.0,0.00018079,2]
[367829501,1750938653114,-500.0,0.00018079,2]
[367829502,1750938653123,-500.0,0.00018079,2]
[367829503,1750938653132,-500.0,0.00018079,2]
[367829504,1750938653141,-500.0,0.00018079,2]
[367829505,1750938653150,-500.0,0.00018079,2]
[367829506,1750938653160,-500.0,0.00018079,2]
[367829507,1750938653169,-500.0,0.00018079,2]
[367829508,1750938653179,-500.0,0.00018079,2]
[367829509,1750938653188,-500.0,0.00018079,2]
[367829510,1750938653197,-500.0,0.00018079,2]
[367829511,1750938653206,-500.0,0.00018079,2]
[367829512,1750938653216,-500.0,0.00018079,2]
[367829513,1750938653225,-500.0,0.00018079,2]